[Event "Schack-SM 2022: Sverigemastarklassen"]
[Site "Fyrishov, Idrottsgatan 2, Uppsala, Sweden"]
[Date "2022.07.10"]
[Round "9.4"]
[White "Johansson, Linus"]
[Black "Jogstad, Martin"]
[Result "1/2-1/2"]
[TimeControl "90 minutes for 40 moves + 30 minutes for the rest of the game + 30 seconds per move from move one."]
[WhiteTitle "IM"]
[BlackTitle "FM"]
[WhiteFideId "1711113"]
[BlackFideId "1715364"]
[WhiteElo "2468"]
[BlackElo "2384"]

1. d4 {[%clk 01:30:56]} {[%emt 00:00:03]} d5 {[%clk 01:30:39]} {[%emt
00:00:21]} 2. c4 {[%clk 01:31:22]} {[%emt 00:00:05]} e6 {[%clk 01:31:00]}
{[%emt 00:00:08]} 3. Nc3 {[%clk 01:31:50]} {[%emt 00:00:02]} a6 {[%clk
01:31:22]} {[%emt 00:00:09]} 4. cxd5 {[%clk 01:32:16]} {[%emt 00:00:04]} exd5
{[%clk 01:31:46]} {[%emt 00:00:06]} 5. Nf3 {[%clk 01:32:41]} {[%emt 00:00:05]}
Nf6 {[%clk 01:32:06]} {[%emt 00:00:09]} 6. Bg5 {[%clk 01:33:02]} {[%emt
00:00:09]} Be6 {[%clk 01:32:26]} {[%emt 00:00:10]} 7. e3 {[%clk 01:33:24]}
{[%emt 00:00:09]} Nbd7 {[%clk 01:32:40]} {[%emt 00:00:16]} 8. Bd3 {[%clk
01:31:08]} {[%emt 00:02:46]} c6 {[%clk 01:32:30]} {[%emt 00:00:40]} 9. O-O
{[%clk 01:31:16]} {[%emt 00:00:23]} Bd6 {[%clk 01:32:43]} {[%emt 00:00:16]} 10.
Qc2 {[%clk 01:30:34]} {[%emt 00:01:12]} Qc7 {[%clk 01:32:20]} {[%emt 00:00:53]}
11. Bh4 {[%clk 00:54:41]} {[%emt 00:36:22]} Bg4 {[%clk 01:27:56]} {[%emt
00:04:54]} 12. Bg3 {[%clk 00:54:51]} {[%emt 00:00:21]} O-O {[%clk 01:12:40]}
{[%emt 00:15:43]} 13. Nd2 {[%clk 00:52:44]} {[%emt 00:02:40]} Bxg3 {[%clk
01:02:26]} {[%emt 00:10:44]} 14. hxg3 {[%clk 00:53:09]} {[%emt 00:00:06]} Rfe8
{[%clk 00:59:34]} {[%emt 00:03:21]} 15. Rfc1 {[%clk 00:51:29]} {[%emt
00:02:10]} Bh5 {[%clk 00:56:23]} {[%emt 00:03:41]} 16. Na4 {[%clk 00:51:44]}
{[%emt 00:00:15]} Bg6 {[%clk 00:56:12]} {[%emt 00:00:41]} 17. b4 {[%clk
00:51:49]} {[%emt 00:00:25]} Rec8 {[%clk 00:37:38]} {[%emt 00:19:03]} 18. Nc5
{[%clk 00:51:09]} {[%emt 00:01:11]} Ne8 {[%clk 00:37:12]} {[%emt 00:00:55]} 19.
Qd1 {[%clk 00:41:29]} {[%emt 00:10:11]} Bxd3 {[%clk 00:37:00]} {[%emt
00:00:42]} 20. Nxd3 {[%clk 00:41:53]} {[%emt 00:00:06]} Nd6 {[%clk 00:36:46]}
{[%emt 00:00:41]} 21. a4 {[%clk 00:41:43]} {[%emt 00:00:43]} Qd8 {[%clk
00:33:47]} {[%emt 00:03:28]} 22. Nb3 {[%clk 00:40:58]} {[%emt 00:01:15]} Qe7
{[%clk 00:32:59]} {[%emt 00:01:18]} 23. Qf3 {[%clk 00:40:03]} {[%emt 00:01:26]}
g6 {[%clk 00:29:05]} {[%emt 00:04:24]} 24. g4 {[%clk 00:38:50]} {[%emt
00:01:43]} Kg7 {[%clk 00:28:59]} {[%emt 00:00:36]} 25. g3 {[%clk 00:39:10]}
{[%emt 00:00:10]} Rh8 {[%clk 00:28:02]} {[%emt 00:01:27]} 26. Kg2 {[%clk
00:39:01]} {[%emt 00:00:39]} h5 {[%clk 00:27:03]} {[%emt 00:01:29]} 27. Rh1
{[%clk 00:39:07]} {[%emt 00:00:24]} hxg4 {[%clk 00:26:17]} {[%emt 00:01:16]} 28.
Qxg4 {[%clk 00:39:30]} {[%emt 00:00:06]} f5 {[%clk 00:17:06]} {[%emt 00:09:42]}
29. Qf3 {[%clk 00:39:24]} {[%emt 00:00:36]} Nf6 {[%clk 00:16:26]} {[%emt
00:01:10]} 30. Ne5 {[%clk 00:35:17]} {[%emt 00:04:37]} Nd7 {[%clk 00:16:09]}
{[%emt 00:00:47]} 31. Nxd7 {[%clk 00:35:15]} {[%emt 00:00:32]} Qxd7 {[%clk
00:16:33]} {[%emt 00:00:06]} 32. Qf4 {[%clk 00:35:18]} {[%emt 00:00:26]} Qe7
{[%clk 00:13:39]} {[%emt 00:03:24]} 33. Nc5 {[%clk 00:35:35]} {[%emt 00:00:14]}
Ne4 {[%clk 00:08:31]} {[%emt 00:05:38]} 34. f3 {[%clk 00:26:02]} {[%emt
00:10:03]} Nxc5 {[%clk 00:05:03]} {[%emt 00:03:57]} 35. bxc5 {[%clk 00:26:20]}
{[%emt 00:00:13]} Rae8 {[%clk 00:03:38]} {[%emt 00:01:55]} 36. Rxh8 {[%clk
00:24:25]} {[%emt 00:02:25]} Rxh8 {[%clk 00:04:01]} {[%emt 00:00:07]} 37. Rb1
{[%clk 00:23:23]} {[%emt 00:01:32]} Rh7 {[%clk 00:03:40]} {[%emt 00:00:51]} 38.
Qe5+ {[%clk 00:18:57]} {[%emt 00:04:56]} Qxe5 {[%clk 00:04:00]} {[%emt
00:00:10]} 39. dxe5 {[%clk 00:19:23]} {[%emt 00:00:04]} Kf8 {[%clk 00:04:08]}
{[%emt 00:00:22]} 40. f4 {[%clk 00:11:42]} {[%emt 00:08:11]} Rd7 {[%clk
00:03:32]} {[%emt 00:01:06]} 41. Kf3 {[%clk 00:07:09]} {[%emt 00:05:03]} Rh7
{[%clk 00:23:27]} {[%emt 00:10:34]} 42. Ke2 {[%clk 00:32:57]} {[%emt 00:04:42]}
Re7 {[%clk 00:08:36]} {[%emt 00:15:22]} 43. Kd3 {[%clk 00:33:08]} {[%emt
00:00:19]} Kf7 {[%clk 00:08:55]} {[%emt 00:00:10]} 44. Rh1 {[%clk 00:31:55]}
{[%emt 00:01:43]} Kg7 {[%clk 00:09:14]} {[%emt 00:00:12]} 45. Kd4 {[%clk
00:30:54]} {[%emt 00:01:30]} Re8 {[%clk 00:08:57]} {[%emt 00:00:47]} 46. Rh4
{[%clk 00:30:54]} {[%emt 00:00:31]} Re7 {[%clk 00:07:00]} {[%emt 00:02:26]} 47.
g4 {[%clk 00:31:09]} {[%emt 00:00:15]} fxg4 {[%clk 00:07:09]} {[%emt 00:00:22]}
48. Rxg4 {[%clk 00:31:33]} {[%emt 00:00:06]} Kf7 {[%clk 00:07:01]} {[%emt
00:00:37]} 49. Rg1 {[%clk 00:30:28]} {[%emt 00:01:35]} Re8 {[%clk 00:06:51]}
{[%emt 00:00:41]} 50. Kd3 {[%clk 00:28:07]} {[%emt 00:02:51]} Re7 {[%clk
00:04:36]} {[%emt 00:02:45]} 51. Ke2 {[%clk 00:27:49]} {[%emt 00:00:47]} Re8
{[%clk 00:05:01]} {[%emt 00:00:05]} 52. Rh1 {[%clk 00:26:52]} {[%emt 00:01:27]}
Kg7 {[%clk 00:05:26]} {[%emt 00:00:06]} 53. e4 {[%clk 00:25:28]} {[%emt
00:01:54]} dxe4 {[%clk 00:04:49]} {[%emt 00:01:07]} 54. Rd1 {[%clk 00:25:52]}
{[%emt 00:00:06]} Kf7 {[%clk 00:03:23]} {[%emt 00:01:56]} 55. Ke3 {[%clk
00:23:39]} {[%emt 00:02:43]} g5 {[%clk 00:03:44]} {[%emt 00:00:09]} 56. Rd7+
{[%clk 00:24:03]} {[%emt 00:00:05]} Ke6 {[%clk 00:01:58]} {[%emt 00:02:17]} 57.
Rd6+ {[%clk 00:24:27]} {[%emt 00:00:06]} Kf7 {[%clk 00:01:58]} {[%emt
00:00:30]} 58. Rf6+ {[%clk 00:24:47]} {[%emt 00:00:10]} Kg7 {[%clk 00:01:52]}
{[%emt 00:00:36]} 59. Kxe4 {[%clk 00:25:08]} {[%emt 00:00:09]} gxf4 {[%clk
00:02:17]} {[%emt 00:00:05]} 60. Rxf4 {[%clk 00:25:25]} {[%emt 00:00:12]} Rd8
{[%clk 00:02:01]} {[%emt 00:00:47]} 61. Kf5 {[%clk 00:20:28]} {[%emt 00:05:26]}
Rf8+ {[%clk 00:02:22]} {[%emt 00:00:09]} 62. Ke4 {[%clk 00:19:49]} {[%emt
00:01:09]} Rd8 {[%clk 00:02:51]} {[%emt 00:00:02]} 63. Kf5 {[%clk 00:15:59]}
{[%emt 00:04:20]} Rf8+ {[%clk 00:03:17]} {[%emt 00:00:04]} 64. Kg5 {[%clk
00:16:24]} {[%emt 00:00:05]} Re8 {[%clk 00:03:28]} {[%emt 00:00:18]} 65. Rf5
{[%clk 00:16:50]} {[%emt 00:00:05]} Re6 {[%clk 00:01:29]} {[%emt 00:02:28]} 66.
Kf4 {[%clk 00:17:02]} {[%emt 00:00:18]} Rh6 {[%clk 00:01:14]} {[%emt 00:00:46]}
67. Ke4 {[%clk 00:16:49]} {[%emt 00:00:42]} Rh1 {[%clk 00:00:56]} {[%emt
00:00:49]} 68. Rf3 {[%clk 00:15:31]} {[%emt 00:01:48]} Re1+ {[%clk 00:01:16]}
{[%emt 00:00:09]} 69. Re3 {[%clk 00:14:35]} {[%emt 00:01:27]} Rc1 {[%clk
00:01:12]} {[%emt 00:00:33]} 70. Kd4 {[%clk 00:13:18]} {[%emt 00:01:47]} Kf7
{[%clk 00:01:16]} {[%emt 00:00:27]} 71. Rh3 {[%clk 00:13:30]} {[%emt 00:00:17]}
Rd1+ {[%clk 00:01:18]} {[%emt 00:00:29]} 72. Kc4 {[%clk 00:13:50]} {[%emt
00:00:10]} Ke6 {[%clk 00:01:16]} {[%emt 00:00:32]} 73. Rb3 {[%clk 00:09:21]}
{[%emt 00:04:59]} Rd7 {[%clk 00:01:16]} {[%emt 00:00:29]} 74. Kb4 {[%clk
00:08:31]} {[%emt 00:01:21]} Kxe5 {[%clk 00:01:07]} {[%emt 00:00:39]} 75. Ka5
{[%clk 00:08:56]} {[%emt 00:00:05]} Kd4 {[%clk 00:01:10]} {[%emt 00:00:26]} 76.
Kb6 {[%clk 00:09:18]} {[%emt 00:00:09]} Kc4 {[%clk 00:01:18]} {[%emt 00:00:21]}
77. Rb1 {[%clk 00:09:02]} {[%emt 00:00:47]} a5 {[%clk 00:01:32]} {[%emt
00:00:16]} 78. Kxa5 {[%clk 00:06:57]} {[%emt 00:02:34]} Kxc5 {[%clk 00:01:50]}
{[%emt 00:00:13]} 79. Rc1 {[%clk 00:07:24]} {[%emt 00:00:03]} Kd6 {[%clk
00:01:50]} {[%emt 00:00:29]} 80. Kb6 {[%clk 00:07:44]} {[%emt 00:00:10]} Ke7
{[%clk 00:02:02]} {[%emt 00:00:17]} 81. Rh1 {[%clk 00:07:39]} {[%emt 00:00:36]}
Rd4 {[%clk 00:01:55]} {[%emt 00:00:38]} 82. Kxb7 {[%clk 00:07:51]} {[%emt
00:00:17]} Rxa4 {[%clk 00:02:18]} {[%emt 00:00:07]} 83. Kxc6 {[%clk 00:08:16]}
{[%emt 00:00:05]} 1/2-1/2

[Event "Schack-SM 2022: Sverigemastarklassen"]
[Site "Fyrishov, Idrottsgatan 2, Uppsala, Sweden"]
[Date "2022.07.10"]
[Round "9.5"]
[White "Hector, Jonny"]
[Black "Westerberg, Jonathan"]
[Result "0-1"]
[TimeControl "90 minutes for 40 moves + 30 minutes for the rest of the game + 30 seconds per move from move one."]
[WhiteTitle "GM"]
[BlackTitle "GM"]
[WhiteFideId "1700090"]
[BlackFideId "1701754"]
[WhiteElo "2441"]
[BlackElo "2476"]

1. e4 {[%clk 01:30:55]} {[%emt 00:00:04]} c5 {[%clk 01:28:12]} {[%emt
00:02:49]} 2. Nf3 {[%clk 01:31:19]} {[%emt 00:00:04]} Nc6 {[%clk 01:28:37]}
{[%emt 00:00:06]} 3. Nc3 {[%clk 01:31:35]} {[%emt 00:00:14]} e5 {[%clk
01:28:58]} {[%emt 00:00:09]} 4. Bc4 {[%clk 01:31:17]} {[%emt 00:00:47]} Be7
{[%clk 01:28:24]} {[%emt 00:01:05]} 5. d3 {[%clk 01:31:14]} {[%emt 00:00:33]}
d6 {[%clk 01:27:27]} {[%emt 00:01:28]} 6. Nd2 {[%clk 01:30:48]} {[%emt
00:00:56]} Bg5 {[%clk 01:26:22]} {[%emt 00:01:35]} 7. h4 {[%clk 01:26:52]}
{[%emt 00:04:25]} Bxd2+ {[%clk 01:18:41]} {[%emt 00:08:11]} 8. Bxd2 {[%clk
01:26:30]} {[%emt 00:00:52]} Nf6 {[%clk 01:17:01]} {[%emt 00:02:10]} 9. Bg5
{[%clk 01:23:30]} {[%emt 00:03:29]} h6 {[%clk 01:13:42]} {[%emt 00:03:50]} 10.
Bxf6 {[%clk 01:22:20]} {[%emt 00:01:40]} Qxf6 {[%clk 01:14:06]} {[%emt
00:00:07]} 11. Nd5 {[%clk 01:20:48]} {[%emt 00:02:02]} Qd8 {[%clk 01:14:26]}
{[%emt 00:00:09]} 12. c3 {[%clk 01:14:03]} {[%emt 00:07:16]} Be6 {[%clk
01:10:42]} {[%emt 00:04:13]} 13. Qe2 {[%clk 01:04:03]} {[%emt 00:10:31]} Qd7
{[%clk 01:07:27]} {[%emt 00:03:42]} 14. a4 {[%clk 00:59:51]} {[%emt 00:04:44]}
O-O {[%clk 01:00:50]} {[%emt 00:07:07]} 15. g4 {[%clk 00:50:50]} {[%emt
00:09:31]} Ne7 {[%clk 00:57:50]} {[%emt 00:03:31]} 16. Nxe7+ {[%clk 00:45:07]}
{[%emt 00:06:13]} Qxe7 {[%clk 00:57:45]} {[%emt 00:00:35]} 17. Kd2 {[%clk
00:42:39]} {[%emt 00:02:58]} g6 {[%clk 00:52:33]} {[%emt 00:05:42]} 18. Kc2
{[%clk 00:36:40]} {[%emt 00:06:29]} Kg7 {[%clk 00:46:37]} {[%emt 00:06:26]} 19.
h5 {[%clk 00:34:53]} {[%emt 00:02:16]} g5 {[%clk 00:46:26]} {[%emt 00:00:43]}
20. Ra3 {[%clk 00:32:43]} {[%emt 00:02:39]} Rab8 {[%clk 00:42:49]} {[%emt
00:04:07]} 21. Rha1 {[%clk 00:32:13]} {[%emt 00:01:00]} b6 {[%clk 00:41:21]}
{[%emt 00:01:58]} 22. Ba6 {[%clk 00:24:56]} {[%emt 00:07:46]} Qd7 {[%clk
00:35:45]} {[%emt 00:06:06]} 23. f3 {[%clk 00:25:00]} {[%emt 00:00:26]} Qc7
{[%clk 00:36:12]} {[%emt 00:00:03]} 24. c4 {[%clk 00:24:48]} {[%emt 00:00:43]}
Bc8 {[%clk 00:36:03]} {[%emt 00:00:39]} 25. Bxc8 {[%clk 00:24:45]} {[%emt
00:00:33]} Rfxc8 {[%clk 00:36:29]} {[%emt 00:00:04]} 26. b3 {[%clk 00:21:59]}
{[%emt 00:03:15]} a6 {[%clk 00:36:55]} {[%emt 00:00:04]} 27. Qd2 {[%clk
00:19:29]} {[%emt 00:03:00]} Rb7 {[%clk 00:37:09]} {[%emt 00:00:16]} 28. Kd1
{[%clk 00:18:28]} {[%emt 00:01:31]} Qe7 {[%clk 00:36:41]} {[%emt 00:00:58]} 29.
Ke2 {[%clk 00:16:00]} {[%emt 00:02:59]} Qf6 {[%clk 00:36:42]} {[%emt 00:00:29]}
30. Kf2 {[%clk 00:13:58]} {[%emt 00:02:31]} Rc6 {[%clk 00:30:54]} {[%emt
00:06:18]} 31. Kg2 {[%clk 00:11:35]} {[%emt 00:02:53]} b5 {[%clk 00:27:26]}
{[%emt 00:03:59]} 32. axb5 {[%clk 00:10:53]} {[%emt 00:01:12]} axb5 {[%clk
00:27:55]} {[%emt 00:00:02]} 33. Ra7 {[%clk 00:09:22]} {[%emt 00:02:00]} Rcb6
{[%clk 00:26:18]} {[%emt 00:02:07]} 34. Rxb7 {[%clk 00:09:15]} {[%emt
00:00:36]} Rxb7 {[%clk 00:26:46]} {[%emt 00:00:02]} 35. Ra8 {[%clk 00:07:08]}
{[%emt 00:02:38]} bxc4 {[%clk 00:25:07]} {[%emt 00:02:10]} 36. bxc4 {[%clk
00:07:32]} {[%emt 00:00:06]} Rb4 {[%clk 00:23:10]} {[%emt 00:02:26]} 37. Re8
{[%clk 00:06:13]} {[%emt 00:01:48]} Rb6 {[%clk 00:18:17]} {[%emt 00:05:24]} 38.
Kf2 {[%clk 00:05:48]} {[%emt 00:00:55]} Rb3 {[%clk 00:16:16]} {[%emt 00:02:30]}
39. Qc2 {[%clk 00:03:35]} {[%emt 00:02:43]} Ra3 {[%clk 00:15:43]} {[%emt
00:01:03]} 40. Qd2 {[%clk 00:03:55]} {[%emt 00:00:09]} Rb3 {[%clk 00:10:55]}
{[%emt 00:05:18]} 41. Qc2 {[%clk 00:04:10]} {[%emt 00:00:15]} Rb4 {[%clk
00:05:09]} {[%emt 00:06:16]} 42. Qc1 {[%clk 00:30:14]} {[%emt 00:04:26]} Ra4
{[%clk 00:26:31]} {[%emt 00:09:07]} 43. Qc2 {[%clk 00:27:38]} {[%emt 00:03:07]}
Ra6 {[%clk 00:21:50]} {[%emt 00:05:10]} 44. Qd2 {[%clk 00:27:47]} {[%emt
00:00:22]} Rb6 {[%clk 00:22:03]} {[%emt 00:00:14]} 45. Kg2 {[%clk 00:25:38]}
{[%emt 00:02:42]} Rb3 {[%clk 00:21:35]} {[%emt 00:00:57]} 46. Kf2 {[%clk
00:24:52]} {[%emt 00:01:17]} d5 {[%clk 00:16:03]} {[%emt 00:06:03]} 47. exd5
{[%clk 00:10:57]} {[%emt 00:14:24]} e4 {[%clk 00:16:15]} {[%emt 00:00:19]} 48.
Qe3 {[%clk 00:10:05]} {[%emt 00:01:20]} Rb2+ {[%clk 00:14:28]} {[%emt
00:02:18]} 49. Kf1 {[%clk 00:09:57]} {[%emt 00:00:38]} Rb1+ {[%clk 00:07:00]}
{[%emt 00:07:59]} 50. Kf2 {[%clk 00:06:27]} {[%emt 00:03:59]} Qb2+ {[%clk
00:06:22]} {[%emt 00:01:09]} 51. Qe2 {[%clk 00:06:19]} {[%emt 00:00:38]} Qd4+
{[%clk 00:05:25]} {[%emt 00:01:27]} 52. Kg3 {[%clk 00:06:39]} {[%emt 00:00:09]}
exd3 {[%clk 00:04:50]} {[%emt 00:01:06]} 0-1

[Event "Schack-SM 2022: Sverigemastarklassen"]
[Site "Fyrishov, Idrottsgatan 2, Uppsala, Sweden"]
[Date "2022.07.09"]
[Round "8.1"]
[White "Cramling, Pia"]
[Black "Hector, Jonny"]
[Result "0-1"]
[TimeControl "90 minutes for 40 moves + 30 minutes for the rest of the game + 30 seconds per move from move one."]
[WhiteTitle "GM"]
[BlackTitle "GM"]
[WhiteFideId "1700030"]
[BlackFideId "1700090"]
[WhiteElo "2459"]
[BlackElo "2441"]

1. d4 {[%clk 01:30:56]} {[%emt 00:00:04]} d5 {[%clk 01:30:54]} {[%emt
00:00:06]} 2. Nf3 {[%clk 01:31:17]} {[%emt 00:00:08]} Nf6 {[%clk 01:31:16]}
{[%emt 00:00:09]} 3. c4 {[%clk 01:31:38]} {[%emt 00:00:09]} c6 {[%clk
01:31:40]} {[%emt 00:00:06]} 4. Qb3 {[%clk 01:32:00]} {[%emt 00:00:09]} dxc4
{[%clk 01:31:23]} {[%emt 00:00:46]} 5. Qxc4 {[%clk 01:32:05]} {[%emt 00:00:25]}
Bg4 {[%clk 01:31:27]} {[%emt 00:00:25]} 6. Nbd2 {[%clk 01:32:09]} {[%emt
00:00:27]} Nbd7 {[%clk 01:29:46]} {[%emt 00:02:11]} 7. g3 {[%clk 01:31:34]}
{[%emt 00:01:05]} e6 {[%clk 01:29:40]} {[%emt 00:00:36]} 8. Bg2 {[%clk
01:31:41]} {[%emt 00:00:23]} Be7 {[%clk 01:29:40]} {[%emt 00:00:30]} 9. O-O
{[%clk 01:29:05]} {[%emt 00:03:07]} O-O {[%clk 01:29:50]} {[%emt 00:00:19]} 10.
Qb3 {[%clk 01:28:14]} {[%emt 00:01:22]} Qb6 {[%clk 01:29:07]} {[%emt 00:01:12]}
11. Nc4 {[%clk 01:27:25]} {[%emt 00:01:20]} Qa6 {[%clk 01:29:00]} {[%emt
00:00:36]} 12. Bd2 {[%clk 01:26:38]} {[%emt 00:01:17]} Nb6 {[%clk 01:28:20]}
{[%emt 00:01:11]} 13. Rfc1 {[%clk 01:26:21]} {[%emt 00:00:47]} Nxc4 {[%clk
01:22:58]} {[%emt 00:05:52]} 14. Qxc4 {[%clk 01:25:49]} {[%emt 00:01:01]} Qxc4
{[%clk 01:22:45]} {[%emt 00:00:43]} 15. Rxc4 {[%clk 01:26:12]} {[%emt
00:00:06]} Nd7 {[%clk 01:21:48]} {[%emt 00:01:27]} 16. Bb4 {[%clk 01:03:43]}
{[%emt 00:23:00]} Nb6 {[%clk 01:11:36]} {[%emt 00:10:43]} 17. Bxe7 {[%clk
01:03:58]} {[%emt 00:00:15]} Nxc4 {[%clk 01:10:49]} {[%emt 00:01:16]} 18. Bxf8
{[%clk 01:04:19]} {[%emt 00:00:10]} Kxf8 {[%clk 01:10:51]} {[%emt 00:00:27]} 19.
Rc1 {[%clk 01:02:05]} {[%emt 00:02:41]} Nb6 {[%clk 01:07:18]} {[%emt 00:04:06]}
20. e3 {[%clk 00:57:52]} {[%emt 00:04:42]} Bxf3 {[%clk 01:04:35]} {[%emt
00:03:14]} 21. Bxf3 {[%clk 00:58:18]} {[%emt 00:00:04]} Rd8 {[%clk 01:04:12]}
{[%emt 00:00:53]} 22. Rc5 {[%clk 00:40:45]} {[%emt 00:18:02]} f6 {[%clk
00:49:03]} {[%emt 00:15:39]} 23. Ra5 {[%clk 00:26:47]} {[%emt 00:14:29]} a6
{[%clk 00:47:03]} {[%emt 00:02:30]} 24. Ra3 {[%clk 00:27:01]} {[%emt 00:00:15]}
Rd7 {[%clk 00:45:49]} {[%emt 00:01:45]} 25. Rb3 {[%clk 00:27:08]} {[%emt
00:00:24]} Nc4 {[%clk 00:44:21]} {[%emt 00:01:57]} 26. Be2 {[%clk 00:26:39]}
{[%emt 00:00:58]} Nd6 {[%clk 00:41:47]} {[%emt 00:03:05]} 27. h4 {[%clk
00:25:30]} {[%emt 00:01:38]} Ke7 {[%clk 00:37:20]} {[%emt 00:04:57]} 28. Rc3
{[%clk 00:22:20]} {[%emt 00:03:41]} h6 {[%clk 00:33:33]} {[%emt 00:04:16]} 29.
Kg2 {[%clk 00:20:50]} {[%emt 00:02:01]} Nf7 {[%clk 00:31:48]} {[%emt 00:02:15]}
30. Rc2 {[%clk 00:17:05]} {[%emt 00:04:15]} e5 {[%clk 00:30:57]} {[%emt
00:01:21]} 31. dxe5 {[%clk 00:16:16]} {[%emt 00:01:19]} Nxe5 {[%clk 00:31:22]}
{[%emt 00:00:04]} 32. a3 {[%clk 00:15:28]} {[%emt 00:01:19]} f5 {[%clk
00:21:01]} {[%emt 00:10:51]} 33. f4 {[%clk 00:13:33]} {[%emt 00:02:25]} Ng4
{[%clk 00:19:29]} {[%emt 00:02:02]} 34. Kf3 {[%clk 00:08:39]} {[%emt 00:05:24]}
Nf6 {[%clk 00:18:56]} {[%emt 00:01:02]} 35. b4 {[%clk 00:08:51]} {[%emt
00:00:19]} h5 {[%clk 00:18:03]} {[%emt 00:01:23]} 36. a4 {[%clk 00:07:16]}
{[%emt 00:02:06]} Ne4 {[%clk 00:11:40]} {[%emt 00:06:52]} 37. b5 {[%clk
00:01:56]} {[%emt 00:05:51]} axb5 {[%clk 00:09:34]} {[%emt 00:02:35]} 38. axb5
{[%clk 00:02:23]} {[%emt 00:00:04]} c5 {[%clk 00:09:24]} {[%emt 00:00:39]} 39.
Ra2 {[%clk 00:01:43]} {[%emt 00:01:10]} Rd6 {[%clk 00:02:54]} {[%emt 00:07:00]}
40. Ra7 {[%clk 00:00:47]} {[%emt 00:01:27]} Rb6 {[%clk 00:03:02]} {[%emt
00:00:21]} 41. Bd3 {[%clk 00:26:53]} {[%emt 00:04:24]} Nd6 {[%clk 00:32:59]}
{[%emt 00:00:33]} 42. Ra4 {[%clk 00:19:07]} {[%emt 00:08:17]} Ke6 {[%clk
00:27:14]} {[%emt 00:06:14]} 43. e4 {[%clk 00:14:16]} {[%emt 00:05:21]} fxe4+
{[%clk 00:26:57]} {[%emt 00:00:46]} 44. Bxe4 {[%clk 00:14:43]} {[%emt
00:00:04]} Rxb5 {[%clk 00:26:42]} {[%emt 00:00:45]} 45. Bg6 {[%clk 00:14:57]}
{[%emt 00:00:16]} Rb3+ {[%clk 00:21:25]} {[%emt 00:05:48]} 46. Kg2 {[%clk
00:13:46]} {[%emt 00:01:40]} c4 {[%clk 00:18:46]} {[%emt 00:03:09]} 47. Bxh5
{[%clk 00:12:54]} {[%emt 00:01:22]} c3 {[%clk 00:18:19]} {[%emt 00:00:56]} 48.
Bg6 {[%clk 00:12:13]} {[%emt 00:01:11]} c2 {[%clk 00:13:13]} {[%emt 00:05:37]}
49. Ra1 {[%clk 00:11:52]} {[%emt 00:00:52]} Rc3 {[%clk 00:13:23]} {[%emt
00:00:19]} 50. Rc1 {[%clk 00:10:02]} {[%emt 00:02:20]} Nf5 {[%clk 00:13:21]}
{[%emt 00:00:32]} 51. Kf2 {[%clk 00:06:43]} {[%emt 00:03:49]} b5 {[%clk
00:12:38]} {[%emt 00:01:13]} 52. Ke1 {[%clk 00:04:37]} {[%emt 00:02:36]} b4
{[%clk 00:11:37]} {[%emt 00:01:31]} 53. Kd2 {[%clk 00:04:45]} {[%emt 00:00:22]}
Rxg3 {[%clk 00:10:24]} {[%emt 00:01:43]} 54. Re1+ {[%clk 00:04:04]} {[%emt
00:01:12]} Kf6 {[%clk 00:09:34]} {[%emt 00:01:19]} 55. Bxf5 {[%clk 00:04:11]}
{[%emt 00:00:23]} Rg2+ {[%clk 00:07:43]} {[%emt 00:02:21]} 56. Kc1 {[%clk
00:04:28]} {[%emt 00:00:13]} Kxf5 {[%clk 00:08:05]} {[%emt 00:00:07]} 57. Re5+
{[%clk 00:04:51]} {[%emt 00:00:07]} Kxf4 {[%clk 00:07:40]} {[%emt 00:00:56]} 58.
Rb5 {[%clk 00:05:17]} {[%emt 00:00:05]} Kg4 {[%clk 00:07:17]} {[%emt 00:00:53]}
59. Rxb4+ {[%clk 00:05:05]} {[%emt 00:00:41]} Kh5 {[%clk 00:07:38]} {[%emt
00:00:08]} 60. Rc4 {[%clk 00:03:57]} {[%emt 00:01:38]} g6 {[%clk 00:07:52]}
{[%emt 00:00:17]} 61. Ra4 {[%clk 00:03:34]} {[%emt 00:00:52]} Rh2 {[%clk
00:07:53]} {[%emt 00:00:30]} 62. Ra6 {[%clk 00:03:48]} {[%emt 00:00:17]} Rxh4
{[%clk 00:08:01]} {[%emt 00:00:21]} 63. Kxc2 {[%clk 00:04:13]} {[%emt
00:00:05]} Rd4 {[%clk 00:06:38]} {[%emt 00:00:46]} 0-1